[Event "*** Titled Tuesday Blitz"]
[Site "Chess.com"]
[Date "2019.11.05"]
[Round "1"]
[White "Niklas2304"]
[Black "Shahinyan_ChessMood"]
[Result "1-0"]
[WhiteElo "2329"]
[BlackElo "2633"]
[TimeControl "180+2"]
[EndTime "13:08:44 PST"]
[Termination "Niklas2304 won on time"]

1. e4 {[%clk 0:03:01.9]} 1... e6 {[%clk 0:02:58.8]} 2. d4 {[%clk 0:03:01.9]}
2... d5 {[%clk 0:03:00.7]} 3. Nc3 {[%clk 0:03:03.3]} 3... Nf6 {[%clk 0:03:01.6]}
4. e5 {[%clk 0:03:04.4]} 4... Nfd7 {[%clk 0:03:02.5]} 5. f4 {[%clk 0:03:05.9]}
5... c5 {[%clk 0:03:04.4]} 6. Nf3 {[%clk 0:03:07.4]} 6... Nc6 {[%clk 0:03:06.3]}
7. Be3 {[%clk 0:03:08]} 7... Be7 {[%clk 0:03:07.8]} 8. Qd2 {[%clk 0:03:09.1]}
8... a6 {[%clk 0:03:09.3]} 9. dxc5 {[%clk 0:03:09]} 9... Nxc5 {[%clk 0:03:09.9]}
10. a3 {[%clk 0:03:10.2]} 10... b5 {[%clk 0:03:11.2]} 11. Qf2 {[%clk 0:03:08.4]}
11... Nd7 {[%clk 0:02:52]} 12. Bd3 {[%clk 0:03:07.7]} 12... Bb7 {[%clk
0:02:52.3]} 13. O-O {[%clk 0:03:08.6]} 13... Qc7 {[%clk 0:02:52.1]} 14. Ne2
{[%clk 0:03:09.2]} 14... Na5 {[%clk 0:02:52.2]} 15. Ned4 {[%clk 0:03:06]} 15...
Nc4 {[%clk 0:02:52.9]} 16. Bc1 {[%clk 0:03:00.2]} 16... Nc5 {[%clk 0:02:47.9]}
17. b3 {[%clk 0:02:50.4]} 17... Nb6 {[%clk 0:02:48]} 18. Qg3 {[%clk 0:02:48.1]}
18... g6 {[%clk 0:02:48.3]} 19. Be3 {[%clk 0:02:42.4]} 19... Nbd7 {[%clk
0:02:40.2]} 20. Ng5 {[%clk 0:02:25.4]} 20... Nxd3 {[%clk 0:02:28.6]} 21. cxd3
{[%clk 0:02:20.7]} 21... Nc5 {[%clk 0:02:29]} 22. Rac1 {[%clk 0:02:13.2]} 22...
Qd7 {[%clk 0:02:27.3]} 23. Rc3 {[%clk 0:02:03.7]} 23... Rc8 {[%clk 0:02:18.5]}
24. Rfc1 {[%clk 0:02:02.2]} 24... h6 {[%clk 0:02:19.7]} 25. Ngf3 {[%clk
0:02:02.1]} 25... a5 {[%clk 0:01:43.2]} 26. b4 {[%clk 0:02:02.4]} 26... axb4
{[%clk 0:01:43]} 27. axb4 {[%clk 0:02:04.3]} 27... Na4 {[%clk 0:01:42.9]} 28.
Rxc8+ {[%clk 0:02:04.7]} 28... Bxc8 {[%clk 0:01:43.8]} 29. Nxb5 {[%clk
0:02:03.9]} 29... Qxb5 {[%clk 0:01:30.4]} 30. Rxc8+ {[%clk 0:02:03.9]} 30... Bd8
{[%clk 0:01:32.3]} 31. Qh4 {[%clk 0:01:18.3]} 31... Kd7 {[%clk 0:01:31.9]} 32.
Rxd8+ {[%clk 0:01:15.3]} 32... Rxd8 {[%clk 0:01:32.9]} 33. Qf6 {[%clk
0:01:14.5]} 33... Rf8 {[%clk 0:01:26.5]} 34. f5 {[%clk 0:01:13.2]} 34... gxf5
{[%clk 0:00:52.6]} 35. Bxh6 {[%clk 0:01:13.9]} 35... Re8 {[%clk 0:00:54.1]} 36.
Bg5 {[%clk 0:00:56]} 36... Kc8 {[%clk 0:00:42.8]} 37. Qxf7 {[%clk 0:00:56.2]}
37... Qd7 {[%clk 0:00:43.3]} 38. Qg6 {[%clk 0:00:54.3]} 38... Nc3 {[%clk
0:00:42.1]} 39. Nd4 {[%clk 0:00:54.2]} 39... Nb5 {[%clk 0:00:30.7]} 40. Nb3
{[%clk 0:00:55.1]} 40... Qa7+ {[%clk 0:00:25.4]} 41. d4 {[%clk 0:00:37.4]} 1-0

[Event "*** Titled Tuesday Blitz"]
[Site "Chess.com"]
[Date "2019.11.05"]
[Round "1"]
[White "Alexander_Donchenko"]
[Black "Galileo22"]
[Result "1-0"]
[WhiteElo "2778"]
[BlackElo "2413"]
[TimeControl "180+2"]
[EndTime "13:08:51 PST"]
[Termination "Alexander_Donchenko won by checkmate"]

1. e4 {[%clk 0:03:01.9]} 1... e5 {[%clk 0:02:55.5]} 2. Nf3 {[%clk 0:03:02.5]}
2... Nc6 {[%clk 0:02:57.1]} 3. Bb5 {[%clk 0:03:02.8]} 3... Nf6 {[%clk
0:02:56.9]} 4. O-O {[%clk 0:03:02.5]} 4... Nxe4 {[%clk 0:02:57]} 5. Re1 {[%clk
0:03:03.7]} 5... Nd6 {[%clk 0:02:57.4]} 6. Nxe5 {[%clk 0:03:04.8]} 6... Be7
{[%clk 0:02:44.1]} 7. Bf1 {[%clk 0:03:05.4]} 7... Nxe5 {[%clk 0:02:39.3]} 8.
Rxe5 {[%clk 0:03:07.3]} 8... O-O {[%clk 0:02:40.1]} 9. d4 {[%clk 0:03:08.4]}
9... Bf6 {[%clk 0:02:31]} 10. Re2 {[%clk 0:03:09.3]} 10... Nf5 {[%clk
0:02:30.3]} 11. c3 {[%clk 0:03:09.6]} 11... d5 {[%clk 0:02:19.2]} 12. Nd2 {[%clk
0:03:10.6]} 12... Nd6 {[%clk 0:02:16.3]} 13. h3 {[%clk 0:03:04.1]} 13... Bd7
{[%clk 0:01:57]} 14. Nf3 {[%clk 0:03:03.9]} 14... Bb5 {[%clk 0:01:54.4]} 15. Re1
{[%clk 0:03:02.6]} 15... Bxf1 {[%clk 0:01:54.7]} 16. Kxf1 {[%clk 0:03:03.6]}
16... Re8 {[%clk 0:01:46.4]} 17. Bf4 {[%clk 0:02:58.8]} 17... Ne4 {[%clk
0:01:45.4]} 18. Qb3 {[%clk 0:02:56]} 18... b6 {[%clk 0:01:41.1]} 19. Qb5 {[%clk
0:02:51.2]} 19... Re6 {[%clk 0:01:33.6]} 20. Nd2 {[%clk 0:02:37.4]} 20... c6
{[%clk 0:01:26]} 21. Qa6 {[%clk 0:02:19.8]} 21... Nxd2+ {[%clk 0:00:58.7]} 22.
Bxd2 {[%clk 0:02:21.7]} 22... Qc8 {[%clk 0:00:47.4]} 23. Qd3 {[%clk 0:02:16.2]}
23... g6 {[%clk 0:00:41.8]} 24. Bh6 {[%clk 0:02:07.5]} 24... a5 {[%clk
0:00:34.6]} 25. Rxe6 {[%clk 0:02:05.6]} 25... Qxe6 {[%clk 0:00:36.5]} 26. Re1
{[%clk 0:02:06.7]} 26... Qd7 {[%clk 0:00:37.2]} 27. Qe3 {[%clk 0:02:02.4]} 27...
Rd8 {[%clk 0:00:37.3]} 28. g4 {[%clk 0:01:34.6]} 28... b5 {[%clk 0:00:35.6]} 29.
Qf4 {[%clk 0:01:26]} 29... Bg7 {[%clk 0:00:32.6]} 30. Bg5 {[%clk 0:01:27]} 30...
Re8 {[%clk 0:00:31.9]} 31. Rxe8+ {[%clk 0:01:23.9]} 31... Qxe8 {[%clk
0:00:33.8]} 32. Qc7 {[%clk 0:01:24.3]} 32... a4 {[%clk 0:00:34.4]} 33. Be7
{[%clk 0:01:20]} 33... h6 {[%clk 0:00:33.6]} 34. Qd6 {[%clk 0:01:10]} 34... Kh7
{[%clk 0:00:33]} 35. Kg2 {[%clk 0:01:05.8]} 35... Qc8 {[%clk 0:00:33.5]} 36. Bf6
{[%clk 0:00:53.1]} 36... Kg8 {[%clk 0:00:27.3]} 37. Bxg7 {[%clk 0:00:48.3]}
37... Kxg7 {[%clk 0:00:29.2]} 38. f4 {[%clk 0:00:48.3]} 38... Kg8 {[%clk
0:00:27.9]} 39. Kf3 {[%clk 0:00:47.9]} 39... Qe8 {[%clk 0:00:27.6]} 40. Qe5
{[%clk 0:00:48.9]} 40... Qd7 {[%clk 0:00:27.5]} 41. f5 {[%clk 0:00:41.4]} 41...
gxf5 {[%clk 0:00:22]} 42. gxf5 {[%clk 0:00:43.3]} 42... Kh7 {[%clk 0:00:22.5]}
43. h4 {[%clk 0:00:41.9]} 43... Kg8 {[%clk 0:00:22.7]} 44. Kg4 {[%clk
0:00:37.6]} 44... Kh7 {[%clk 0:00:23]} 45. Kh5 {[%clk 0:00:35.3]} 45... Qd8
{[%clk 0:00:21.1]} 46. f6 {[%clk 0:00:30.7]} 46... Qd7 {[%clk 0:00:22.1]} 47.
Qf4 {[%clk 0:00:23.8]} 47... Qe6 {[%clk 0:00:22.4]} 48. Qxh6+ {[%clk 0:00:24.6]}
48... Kg8 {[%clk 0:00:23.4]} 49. Qg7# {[%clk 0:00:26.5]} 1-0

[Event "*** Titled Tuesday Blitz"]
[Site "Chess.com"]
[Date "2019.11.05"]
[Round "1"]
[White "Korchmar_Vasiliy"]
[Black "Saitama_Hero"]
[Result "1-0"]
[WhiteElo "2702"]
[BlackElo "2354"]
[TimeControl "180+2"]
[EndTime "13:09:00 PST"]
[Termination "Korchmar_Vasiliy won by resignation"]

1. d4 {[%clk 0:03:01.8]} 1... Nf6 {[%clk 0:02:59.1]} 2. c4 {[%clk 0:03:02.6]}
2... g6 {[%clk 0:03:00.5]} 3. Nc3 {[%clk 0:03:02.9]} 3... d5 {[%clk 0:03:02.4]}
4. Nf3 {[%clk 0:03:03.2]} 4... Bg7 {[%clk 0:03:02.6]} 5. Bf4 {[%clk 0:03:04.2]}
5... O-O {[%clk 0:03:03.1]} 6. e3 {[%clk 0:03:04.9]} 6... c5 {[%clk 0:03:01.2]}
7. dxc5 {[%clk 0:03:05.3]} 7... Qa5 {[%clk 0:03:01]} 8. Rc1 {[%clk 0:03:04.5]}
8... dxc4 {[%clk 0:03:01.1]} 9. Bxc4 {[%clk 0:03:06.2]} 9... Qxc5 {[%clk
0:03:02.3]} 10. Bb3 {[%clk 0:03:07.2]} 10... Nc6 {[%clk 0:03:03.4]} 11. O-O
{[%clk 0:03:07.5]} 11... Bf5 {[%clk 0:03:00.8]} 12. Nd5 {[%clk 0:02:28.9]} 12...
Qa5 {[%clk 0:03:00.7]} 13. Bc7 {[%clk 0:02:29.8]} 13... Qa6 {[%clk 0:02:59.7]}
14. Rxc6 {[%clk 0:02:16]} 14... bxc6 {[%clk 0:02:57.1]} 15. Nxe7+ {[%clk
0:02:17.4]} 15... Kh8 {[%clk 0:02:56.4]} 16. Nxf5 {[%clk 0:02:19]} 16... gxf5
{[%clk 0:02:57.6]} 17. Nd4 {[%clk 0:01:57.9]} 17... Qc8 {[%clk 0:02:42.5]} 18.
Be5 {[%clk 0:01:50]} 18... Re8 {[%clk 0:02:24.1]} 19. Bg3 {[%clk 0:01:51.1]}
19... Ne4 {[%clk 0:01:57.5]} 20. Bxf7 {[%clk 0:01:17.8]} 20... Rd8 {[%clk
0:01:36.3]} 21. Qh5 {[%clk 0:01:11.1]} 21... Nxg3 {[%clk 0:01:22.4]} 22. hxg3
{[%clk 0:01:13]} 22... Bxd4 {[%clk 0:01:15.4]} 23. exd4 {[%clk 0:01:14.9]} 23...
Qd7 {[%clk 0:00:52.5]} 24. Re1 {[%clk 0:01:15]} 24... Rf8 {[%clk 0:00:40.7]} 25.
Be6 {[%clk 0:01:05]} 25... Qxd4 {[%clk 0:00:40]} 26. Bxf5 {[%clk 0:01:05.4]}
26... Qg7 {[%clk 0:00:37.3]} 27. Re6 {[%clk 0:01:01.4]} 27... Rad8 {[%clk
0:00:27.9]} 28. g4 {[%clk 0:00:32.1]} 28... Rd1+ {[%clk 0:00:23.3]} 29. Kh2
{[%clk 0:00:33.3]} 29... Rd2 {[%clk 0:00:22.7]} 30. Rh6 {[%clk 0:00:22]} 30...
Rf7 {[%clk 0:00:12.4]} 31. Qh4 {[%clk 0:00:10]} 31... Qe5+ {[%clk 0:00:07.1]}
32. Kh3 {[%clk 0:00:09.9]} 32... Qg7 {[%clk 0:00:03.5]} 33. b4 {[%clk
0:00:07.7]} 33... Rd5 {[%clk 0:00:04.8]} 34. a3 {[%clk 0:00:04]} 34... Rd4
{[%clk 0:00:06.2]} 35. Kh2 {[%clk 0:00:04.1]} 35... Qe5+ {[%clk 0:00:06.3]} 36.
Kh3 {[%clk 0:00:05.4]} 36... Qg7 {[%clk 0:00:04.7]} 37. f4 {[%clk 0:00:06.4]}
37... Rd5 {[%clk 0:00:04]} 38. Kh2 {[%clk 0:00:06.4]} 38... Rfxf5 {[%clk
0:00:04.1]} 39. gxf5 {[%clk 0:00:07.2]} 39... Rd2 {[%clk 0:00:05.4]} 40. Qg5
{[%clk 0:00:04.8]} 40... Qf7 {[%clk 0:00:04.9]} 41. Qf6+ {[%clk 0:00:05]} 41...
Qxf6 {[%clk 0:00:05.7]} 42. Rxf6 {[%clk 0:00:06.9]} 42... Kg7 {[%clk 0:00:07]}
43. Rxc6 {[%clk 0:00:08]} 43... Ra2 {[%clk 0:00:07.7]} 44. Rc7+ {[%clk
0:00:09.3]} 1-0

[Event "*** Titled Tuesday Blitz"]
[Site "Chess.com"]
[Date "2019.11.05"]
[Round "1"]
[White "vlad10898"]
[Black "aa175"]
[Result "1/2-1/2"]
[WhiteElo "2627"]
[BlackElo "2285"]
[TimeControl "180+2"]
[EndTime "13:09:02 PST"]
[Termination "Game drawn - insufficient material"]

1. e4 {[%clk 0:02:58.9]} 1... c5 {[%clk 0:02:56.9]} 2. Nf3 {[%clk 0:03:00.1]}
2... d6 {[%clk 0:02:58]} 3. d4 {[%clk 0:03:01.6]} 3... cxd4 {[%clk 0:02:58.7]}
4. Nxd4 {[%clk 0:03:03.5]} 4... Nf6 {[%clk 0:03:00]} 5. Nc3 {[%clk 0:03:05.2]}
5... a6 {[%clk 0:03:01.3]} 6. Bg5 {[%clk 0:03:06.6]} 6... Nbd7 {[%clk
0:03:01.8]} 7. Qe2 {[%clk 0:03:07.9]} 7... e6 {[%clk 0:02:58.3]} 8. f4 {[%clk
0:03:08.4]} 8... h6 {[%clk 0:02:59.2]} 9. Bh4 {[%clk 0:03:03.8]} 9... g5 {[%clk
0:02:59.9]} 10. fxg5 {[%clk 0:03:04.4]} 10... hxg5 {[%clk 0:03:01.8]} 11. Bxg5
{[%clk 0:03:05.2]} 11... b5 {[%clk 0:03:02.4]} 12. O-O-O {[%clk 0:02:53.8]}
12... Bb7 {[%clk 0:03:02.6]} 13. Nd5 {[%clk 0:02:38.3]} 13... exd5 {[%clk
0:02:47.1]} 14. exd5+ {[%clk 0:02:38.2]} 14... Be7 {[%clk 0:02:48.3]} 15. Nf5
{[%clk 0:02:19.1]} 15... Ne5 {[%clk 0:02:35.9]} 16. Nxe7 {[%clk 0:02:20]} 16...
Qxe7 {[%clk 0:02:28.4]} 17. g3 {[%clk 0:02:21.4]} 17... O-O-O {[%clk 0:02:02]}
18. Bg2 {[%clk 0:02:08.6]} 18... Rdg8 {[%clk 0:01:52.8]} 19. h4 {[%clk
0:02:09.1]} 19... Rg6 {[%clk 0:01:39.7]} 20. Be4 {[%clk 0:01:47.5]} 20... Rxg5
{[%clk 0:01:04.2]} 21. hxg5 {[%clk 0:01:48.2]} 21... Rxh1 {[%clk 0:01:06.1]} 22.
Bxh1 {[%clk 0:01:49.4]} 22... Nfg4 {[%clk 0:01:05.3]} 23. Qd2 {[%clk 0:01:35.3]}
23... Nc4 {[%clk 0:00:50.9]} 24. Qf4 {[%clk 0:01:35.2]} 24... Qe3+ {[%clk
0:00:46.5]} 25. Qxe3 {[%clk 0:01:35.2]} 25... Ngxe3 {[%clk 0:00:40.3]} 26. Rd3
{[%clk 0:01:24.7]} 26... Ng4 {[%clk 0:00:35.4]} 27. Be4 {[%clk 0:01:12.1]} 27...
Kd8 {[%clk 0:00:16.6]} 28. b3 {[%clk 0:00:54.9]} 28... Nce5 {[%clk 0:00:17.5]}
29. Rd4 {[%clk 0:00:54.1]} 29... Ne3 {[%clk 0:00:14]} 30. a4 {[%clk 0:00:41.9]}
30... bxa4 {[%clk 0:00:12.3]} 31. Rxa4 {[%clk 0:00:37.9]} 31... Nd7 {[%clk
0:00:11.6]} 32. Rb4 {[%clk 0:00:34.8]} 32... Bxd5 {[%clk 0:00:12.6]} 33. Bxd5
{[%clk 0:00:34.1]} 33... Nxd5 {[%clk 0:00:14.5]} 34. Rd4 {[%clk 0:00:34.8]}
34... N7b6 {[%clk 0:00:11.5]} 35. c4 {[%clk 0:00:35.6]} 35... Nc3 {[%clk
0:00:04.5]} 36. Rxd6+ {[%clk 0:00:36.7]} 36... Nd7 {[%clk 0:00:05.4]} 37. Rxa6
{[%clk 0:00:36.6]} 37... Ne2+ {[%clk 0:00:04.8]} 38. Kd2 {[%clk 0:00:37.7]}
38... Nxg3 {[%clk 0:00:06.7]} 39. Ke3 {[%clk 0:00:38.4]} 39... Nf5+ {[%clk
0:00:07.4]} 40. Ke4 {[%clk 0:00:38.1]} 40... Nc5+ {[%clk 0:00:08.2]} 41. Kxf5
{[%clk 0:00:37.1]} 41... Nxa6 {[%clk 0:00:08.3]} 42. g6 {[%clk 0:00:28.3]} 42...
fxg6+ {[%clk 0:00:05.8]} 43. Kxg6 {[%clk 0:00:30.2]} 43... Kd7 {[%clk
0:00:04.9]} 44. Kf5 {[%clk 0:00:31.4]} 44... Kc6 {[%clk 0:00:05.3]} 45. Ke4
{[%clk 0:00:32.9]} 45... Kc5 {[%clk 0:00:07.2]} 46. Kd3 {[%clk 0:00:34.4]} 46...
Nb4+ {[%clk 0:00:07.9]} 47. Kc3 {[%clk 0:00:35.8]} 47... Nc6 {[%clk 0:00:09.8]}
48. Kd3 {[%clk 0:00:37.1]} 48... Ne5+ {[%clk 0:00:07.8]} 49. Kc3 {[%clk
0:00:38.3]} 49... Nc6 {[%clk 0:00:08.9]} 50. Kd3 {[%clk 0:00:39.2]} 50... Kb4
{[%clk 0:00:10.8]} 51. c5 {[%clk 0:00:39.6]} 51... Kxb3 {[%clk 0:00:11.3]} 52.
Ke4 {[%clk 0:00:41]} 52... Kc4 {[%clk 0:00:13.2]} 53. Kf5 {[%clk 0:00:42.5]}
53... Kd5 {[%clk 0:00:15.1]} 54. Kf6 {[%clk 0:00:43.7]} 54... Kxc5 {[%clk
0:00:14.5]} 1/2-1/2

[Event "*** Titled Tuesday Blitz"]
[Site "Chess.com"]
[Date "2019.11.05"]
[Round "1"]
[White "bilelou"]
[Black "Sjakkerntobi"]
[Result "1-0"]
[WhiteElo "2555"]
[BlackElo "2104"]
[TimeControl "180+2"]
[EndTime "13:09:03 PST"]
[Termination "bilelou won by resignation"]

1. e4 {[%clk 0:02:57.4]} 1... c5 {[%clk 0:03:00.1]} 2. Nf3 {[%clk 0:02:54.4]}
2... e6 {[%clk 0:03:00.8]} 3. d4 {[%clk 0:02:51.5]} 3... cxd4 {[%clk 0:03:02.7]}
4. Nxd4 {[%clk 0:02:53.4]} 4... Nc6 {[%clk 0:03:03.9]} 5. Nc3 {[%clk 0:02:54]}
5... Qc7 {[%clk 0:03:03.5]} 6. Be3 {[%clk 0:02:55.4]} 6... a6 {[%clk 0:03:04]}
7. a3 {[%clk 0:02:56.2]} 7... b5 {[%clk 0:03:00.1]} 8. Nxc6 {[%clk 0:02:54.8]}
8... Qxc6 {[%clk 0:02:58.7]} 9. Be2 {[%clk 0:02:40.5]} 9... Bb7 {[%clk
0:02:56.1]} 10. O-O {[%clk 0:02:38.8]} 10... Nf6 {[%clk 0:02:51.5]} 11. Bf3
{[%clk 0:02:38.3]} 11... e5 {[%clk 0:02:49.7]} 12. Nd5 {[%clk 0:02:35.8]} 12...
Nxd5 {[%clk 0:02:47.9]} 13. exd5 {[%clk 0:02:35.6]} 13... Qg6 {[%clk 0:02:49.3]}
14. Re1 {[%clk 0:02:33.7]} 14... d6 {[%clk 0:02:49.1]} 15. c4 {[%clk 0:02:34.6]}
15... Be7 {[%clk 0:02:40.8]} 16. c5 {[%clk 0:02:35.1]} 16... dxc5 {[%clk
0:02:04.2]} 17. d6 {[%clk 0:02:35.2]} 17... Bxf3 {[%clk 0:02:06.1]} 18. Qxf3
{[%clk 0:02:34]} 18... e4 {[%clk 0:02:07.2]} 19. d7+ {[%clk 0:02:26.7]} 19...
Kf8 {[%clk 0:01:37.3]} 20. Qd1 {[%clk 0:02:23.1]} 20... Rd8 {[%clk 0:01:35.1]}
21. Qc2 {[%clk 0:02:14.2]} 21... Qc6 {[%clk 0:01:23.9]} 22. a4 {[%clk
0:02:02.8]} 22... Rxd7 {[%clk 0:01:12.9]} 23. axb5 {[%clk 0:02:01.4]} 23... Qxb5
{[%clk 0:01:11.3]} 24. Qxe4 {[%clk 0:02:00.5]} 24... f6 {[%clk 0:00:56.7]} 25.
Qe6 {[%clk 0:01:42]} 25... Rd6 {[%clk 0:00:44.6]} 26. Qc8+ {[%clk 0:01:30.5]}
26... Rd8 {[%clk 0:00:45.6]} 27. Qc7 {[%clk 0:01:28]} 27... Qd7 {[%clk
0:00:34.8]} 28. Qa5 {[%clk 0:01:17]} 28... Qb5 {[%clk 0:00:31.7]} 29. Qxa6
{[%clk 0:01:09.7]} 29... Qxa6 {[%clk 0:00:33.4]} 30. Rxa6 {[%clk 0:01:11.6]}
30... Kf7 {[%clk 0:00:34.6]} 31. Ra7 {[%clk 0:01:12.8]} 31... Rc8 {[%clk
0:00:31.9]} 32. Bxc5 {[%clk 0:01:08.6]} 32... Rxc5 {[%clk 0:00:32.9]} 33. Rexe7+
{[%clk 0:01:09.6]} 33... Kg6 {[%clk 0:00:34.8]} 34. Rxg7+ {[%clk 0:01:10.5]}
34... Kf5 {[%clk 0:00:36.5]} 35. g4+ {[%clk 0:01:12.1]} 35... Kf4 {[%clk
0:00:36.9]} 36. Kg2 {[%clk 0:01:10.9]} 36... Rc2 {[%clk 0:00:37.6]} 37. Ra4+
{[%clk 0:01:11.5]} 37... Ke5 {[%clk 0:00:38.1]} 38. Re7+ {[%clk 0:01:13]} 38...
Kd6 {[%clk 0:00:39.4]} 39. Rae4 {[%clk 0:01:14.5]} 39... Rxb2 {[%clk 0:00:37.7]}
40. R4e6+ {[%clk 0:01:15.8]} 40... Kd5 {[%clk 0:00:38.5]} 41. Rxf6 {[%clk
0:01:12.4]} 41... Rb4 {[%clk 0:00:35.3]} 42. Rg7 {[%clk 0:01:11.6]} 42... Ke5
{[%clk 0:00:29.9]} 43. Rf5+ {[%clk 0:00:51.3]} 43... Ke6 {[%clk 0:00:30.8]} 44.
h3 {[%clk 0:00:52.9]} 44... Rc4 {[%clk 0:00:28.3]} 45. Rh5 {[%clk 0:00:53]}
45... h6 {[%clk 0:00:25.4]} 46. Rg6+ {[%clk 0:00:53.3]} 46... Kf7 {[%clk
0:00:27.3]} 47. Rhxh6 {[%clk 0:00:53.9]} 47... Rxh6 {[%clk 0:00:29.2]} 48. Rxh6
{[%clk 0:00:55.7]} 48... Kg7 {[%clk 0:00:31.1]} 49. Rh5 {[%clk 0:00:57]} 49...
Kg6 {[%clk 0:00:32.2]} 50. Rf5 {[%clk 0:00:58.9]} 50... Rd4 {[%clk 0:00:33.2]}
51. Kg3 {[%clk 0:01:00.4]} 51... Rd3+ {[%clk 0:00:33.9]} 52. f3 {[%clk 0:01:02]}
52... Rd1 {[%clk 0:00:33.9]} 53. h4 {[%clk 0:01:03.9]} 53... Rg1+ {[%clk
0:00:35.1]} 54. Kf4 {[%clk 0:01:05.4]} 54... Ra1 {[%clk 0:00:36.9]} 55. h5+
{[%clk 0:01:07.3]} 55... Kg7 {[%clk 0:00:37.4]} 56. Kg5 {[%clk 0:00:57.8]} 56...
Ra7 {[%clk 0:00:36.9]} 57. f4 {[%clk 0:00:59.2]} 1-0

[Event "*** Titled Tuesday Blitz"]
[Site "Chess.com"]
[Date "2019.11.05"]
[Round "1"]
[White "RainForestt"]
[Black "nihalsarin"]
[Result "0-1"]
[WhiteElo "2519"]
[BlackElo "3003"]
[TimeControl "180+2"]
[EndTime "13:09:04 PST"]
[Termination "nihalsarin won by resignation"]

1. d4 {[%clk 0:02:54.5]} 1... Nf6 {[%clk 0:03:00.4]} 2. Nf3 {[%clk 0:02:55.1]}
2... d5 {[%clk 0:03:01]} 3. e3 {[%clk 0:02:53.3]} 3... Bf5 {[%clk 0:03:00.1]} 4.
Be2 {[%clk 0:02:52.7]} 4... e6 {[%clk 0:03:00.3]} 5. O-O {[%clk 0:02:50.8]} 5...
Nbd7 {[%clk 0:03:01.2]} 6. b3 {[%clk 0:02:50.1]} 6... Bd6 {[%clk 0:02:59.3]} 7.
Bb2 {[%clk 0:02:50.8]} 7... O-O {[%clk 0:03:00]} 8. Nbd2 {[%clk 0:02:50]} 8...
c6 {[%clk 0:02:59.9]} 9. Ne5 {[%clk 0:02:32.7]} 9... Qc7 {[%clk 0:02:57.1]} 10.
f4 {[%clk 0:02:33]} 10... Ne4 {[%clk 0:02:57.5]} 11. Nxe4 {[%clk 0:02:33.2]}
11... Bxe4 {[%clk 0:02:59.4]} 12. Bd3 {[%clk 0:02:33.5]} 12... Bxd3 {[%clk
0:02:29.4]} 13. cxd3 {[%clk 0:02:27.5]} 13... a5 {[%clk 0:02:30.5]} 14. Nxd7
{[%clk 0:02:27.5]} 14... Qxd7 {[%clk 0:02:32.4]} 15. a3 {[%clk 0:02:28.3]} 15...
Qe7 {[%clk 0:02:32.2]} 16. e4 {[%clk 0:02:24.5]} 16... Bc7 {[%clk 0:02:25.1]}
17. Qc2 {[%clk 0:02:10.6]} 17... Bb6 {[%clk 0:02:24.4]} 18. Kh1 {[%clk
0:01:55.3]} 18... Rad8 {[%clk 0:02:00.5]} 19. e5 {[%clk 0:01:50.8]} 19... f5
{[%clk 0:01:49.5]} 20. Rfc1 {[%clk 0:01:40]} 20... g5 {[%clk 0:01:47.6]} 21. Rf1
{[%clk 0:01:09.7]} 21... Kh8 {[%clk 0:01:44.9]} 22. Qd2 {[%clk 0:01:09.5]} 22...
Rg8 {[%clk 0:01:45.8]} 23. Bc3 {[%clk 0:01:01.1]} 23... Ra8 {[%clk 0:01:41.2]}
24. Rf3 {[%clk 0:00:56.7]} 24... Rg6 {[%clk 0:01:32.2]} 25. g3 {[%clk
0:00:47.3]} 25... Rag8 {[%clk 0:01:31.3]} 26. b4 {[%clk 0:00:31.4]} 26... a4
{[%clk 0:01:32.1]} 27. Raf1 {[%clk 0:00:31.4]} 27... Rh6 {[%clk 0:01:02.4]} 28.
Rg1 {[%clk 0:00:18.4]} 28... g4 {[%clk 0:00:57.7]} 29. Rf2 {[%clk 0:00:18.5]}
29... Rh3 {[%clk 0:00:59.3]} 30. Rgg2 {[%clk 0:00:19]} 30... h5 {[%clk
0:00:59.9]} 31. Kg1 {[%clk 0:00:19.9]} 31... Kg7 {[%clk 0:01:01.1]} 32. Kf1
{[%clk 0:00:20.8]} 32... h4 {[%clk 0:01:00.6]} 33. Ke2 {[%clk 0:00:21.9]} 33...
Rh8 {[%clk 0:01:02.1]} 34. Qd1 {[%clk 0:00:19.4]} 34... Ra8 {[%clk 0:00:59]} 35.
Qf1 {[%clk 0:00:19.9]} 35... Kf7 {[%clk 0:00:59]} 36. gxh4 {[%clk 0:00:20.6]}
36... Qxh4 {[%clk 0:00:57.8]} 37. Qd1 {[%clk 0:00:21.6]} 37... Ke8 {[%clk
0:00:40.4]} 38. Qa1 {[%clk 0:00:20.8]} 38... Kd7 {[%clk 0:00:41.1]} 39. Be1
{[%clk 0:00:21.5]} 39... Qh5 {[%clk 0:00:38.9]} 40. Kd2 {[%clk 0:00:18.6]} 40...
Rh8 {[%clk 0:00:33.6]} 41. Kc3 {[%clk 0:00:17.4]} 41... Qe8 {[%clk 0:00:25.6]}
42. Qb2 {[%clk 0:00:18]} 42... Qa8 {[%clk 0:00:26.6]} 43. Bd2 {[%clk 0:00:17.6]}
43... Qa7 {[%clk 0:00:27.1]} 44. Kc2 {[%clk 0:00:11.9]} 44... Bxd4 {[%clk
0:00:28]} 0-1